{"text_format":"1","workbook":"xlsx","n_sheets":15,"sheets":["Menu","CF01","CF02","CF03","CF04","CF05","CF06","CF07","CF08","CF09","CF10","CF11","CF12","Dash","Instruções"],"not_rendered":{"charts":1,"images":8,"macros":1,"external_links":0,"defined_names":13,"comments":0,"pivot_tables":0},"unopened":[],"bounds":{"document_bytes":16777216,"sheet_cells":100000,"rows_first":2000,"rows_last":500,"rows_between":2000,"halvings":0,"cell_chars":16384,"cell_head_chars":4096},"cells_cut":0,"cells_raw":0,"read":"whole","date_system":"1900"}

{"sheet":"Menu","index":0,"n_rows":26,"n_cols":7,"rows_kept":26,"cut":false,"hidden":false,"merged":[[25,4,25,5],[25,6,25,14]]}
[]
[]
[]
[]
[]
[]
[]
[]
[]
[]
[]
[]
[]
[]
[]
[]
[]
[]
[]
[]
[]
[]
[]
[]
[]
[null,null,null,null,"Empresa:",null,"Empresa ABCDE"]

{"sheet":"CF01","index":1,"n_rows":15,"n_cols":13,"rows_kept":15,"cut":false,"hidden":false,"merged":[[9,7,9,8],[9,2,9,5]]}
[]
[]
[null,null,null,null,null,null,{"$f":"IF(H10>=6750,\"ATENÇÃO: Você atingiu o limite de faturamento mensal de R$ 6.750,00\",IF(H10>=6000,\"O limite de faturamento mensal de R$ 6.750,00 está quase sendo atingido.\",\"\"))","v":"O limite de faturamento mensal de R$ 6.750,00 está quase sendo atingido."}]
[]
[]
[]
[]
[]
[]
[null,"Empresa:",{"$f":"Menu!G26","v":"Empresa ABCDE"},null,null,null,null,{"$f":"SUMIF(JAN[Status Nota Fiscal],\"Ativa\",JAN[Valor da Parcela a Receber])","v":6250}]
[]
[null,"Data da Venda","Cliente","CNPJ","Descrição da Venda (Produto ou Serviço)","Valor da Parcela a Receber","Nota Fiscal","Status Nota Fiscal","Se Cancelada, Nº Nota Fiscal Substituta","Data Prevista de Recebimento","Nº Parcela deste Mês","Nº Total de Parcelas","Data Recebimento"]
[null,"2019-01-06","Empresa ABC","11.111.111/0001-11","Produto A",250,123,"Ativa",null,"2020-01-10",1,1,"2020-01-10"]
[null,"2019-01-07","Empresa 123","11.111.111/0001-12","Produto B",500,456,"Ativa",null,"2020-01-07",1,1]
[null,"2019-01-08","Empresa XYZ","11.111.111/0001-13","Produto C",5500,789,"Ativa",null,"2020-01-08",1,1,"2020-01-08"]

{"sheet":"CF02","index":2,"n_rows":12,"n_cols":13,"rows_kept":12,"cut":false,"hidden":false,"merged":[[9,2,9,5],[9,7,9,8]]}
[]
[]
[null,null,null,null,null,null,null,null,null,{"$f":"IF(H10>=6750,\"ATENÇÃO: Você atingiu o limite de faturamento mensal de R$ 6.750,00\",IF(H10>=6000,\"O limite de faturamento mensal de R$ 6.750,00 está quase sendo atingido.\",\"\"))","v":""}]
[]
[]
[]
[]
[]
[]
[null,"Empresa:",{"$f":"Menu!G26","v":"Empresa ABCDE"},null,null,null,null,{"$f":"SUMIF(FEV[Status Nota Fiscal],\"Ativa\",FEV[Valor da Parcela a Receber])","v":0}]
[]
[null,"Data da Venda","Cliente","CNPJ","Descrição da Venda (Produto ou Serviço)","Valor da Parcela a Receber","Nota Fiscal","Status Nota Fiscal","Se Cancelada, Nº Nota Fiscal Substituta","Data Prevista de Recebimento","Nº Parcela deste Mês","Nº Total de Parcelas","Data Recebimento"]

{"sheet":"CF03","index":3,"n_rows":12,"n_cols":13,"rows_kept":12,"cut":false,"hidden":false,"merged":[[9,2,9,5],[9,7,9,8]]}
[]
[]
[null,null,null,null,null,null,null,null,null,{"$f":"IF(H10>=6750,\"ATENÇÃO: Você atingiu o limite de faturamento mensal de R$ 6.750,00\",IF(H10>=6000,\"O limite de faturamento mensal de R$ 6.750,00 está quase sendo atingido.\",\"\"))","v":""}]
[]
[]
[]
[]
[]
[]
[null,"Empresa:",{"$f":"Menu!G26","v":"Empresa ABCDE"},null,null,null,null,{"$f":"SUMIF(MAR[Status Nota Fiscal],\"Ativa\",MAR[Valor da Parcela a Receber])","v":0}]
[]
[null,"Data da Venda","Cliente","CNPJ","Descrição da Venda (Produto ou Serviço)","Valor da Parcela a Receber","Nota Fiscal","Status Nota Fiscal","Se Cancelada, Nº Nota Fiscal Substituta","Data Prevista de Recebimento","Nº Parcela deste Mês","Nº Total de Parcelas","Data Recebimento"]

{"sheet":"CF04","index":4,"n_rows":12,"n_cols":13,"rows_kept":12,"cut":false,"hidden":false,"merged":[[9,2,9,5],[9,7,9,8]]}
[]
[]
[null,null,null,null,null,null,null,null,null,{"$f":"IF(H10>=6750,\"ATENÇÃO: Você atingiu o limite de faturamento mensal de R$ 6.750,00\",IF(H10>=6000,\"O limite de faturamento mensal de R$ 6.750,00 está quase sendo atingido.\",\"\"))","v":""}]
[]
[]
[]
[]
[]
[]
[null,"Empresa:",{"$f":"Menu!G26","v":"Empresa ABCDE"},null,null,null,null,{"$f":"SUMIF(ABR[Status Nota Fiscal],\"Ativa\",ABR[Valor da Parcela a Receber])","v":0}]
[]
[null,"Data da Venda","Cliente","CNPJ","Descrição da Venda (Produto ou Serviço)","Valor da Parcela a Receber","Nota Fiscal","Status Nota Fiscal","Se Cancelada, Nº Nota Fiscal Substituta","Data Prevista de Recebimento","Nº Parcela deste Mês","Nº Total de Parcelas","Data Recebimento"]

{"sheet":"CF05","index":5,"n_rows":12,"n_cols":13,"rows_kept":12,"cut":false,"hidden":false,"merged":[[9,2,9,5],[9,7,9,8]]}
[]
[]
[null,null,null,null,null,null,null,null,null,{"$f":"IF(H10>=6750,\"ATENÇÃO: Você atingiu o limite de faturamento mensal de R$ 6.750,00\",IF(H10>=6000,\"O limite de faturamento mensal de R$ 6.750,00 está quase sendo atingido.\",\"\"))","v":""}]
[]
[]
[]
[]
[]
[]
[null,"Empresa:",{"$f":"Menu!G26","v":"Empresa ABCDE"},null,null,null,null,{"$f":"SUMIF(MAI[Status Nota Fiscal],\"Ativa\",MAI[Valor da Parcela a Receber])","v":0}]
[]
[null,"Data da Venda","Cliente","CNPJ","Descrição da Venda (Produto ou Serviço)","Valor da Parcela a Receber","Nota Fiscal","Status Nota Fiscal","Se Cancelada, Nº Nota Fiscal Substituta","Data Prevista de Recebimento","Nº Parcela deste Mês","Nº Total de Parcelas","Data Recebimento"]

{"sheet":"CF06","index":6,"n_rows":12,"n_cols":13,"rows_kept":12,"cut":false,"hidden":false,"merged":[[9,2,9,5],[9,7,9,8]]}
[]
[]
[null,null,null,null,null,null,null,null,null,{"$f":"IF(H10>=6750,\"ATENÇÃO: Você atingiu o limite de faturamento mensal de R$ 6.750,00\",IF(H10>=6000,\"O limite de faturamento mensal de R$ 6.750,00 está quase sendo atingido.\",\"\"))","v":""}]
[]
[]
[]
[]
[]
[]
[null,"Empresa:",{"$f":"Menu!G26","v":"Empresa ABCDE"},null,null,null,null,{"$f":"SUMIF(JUN[Status Nota Fiscal],\"Ativa\",JUN[Valor da Parcela a Receber])","v":0}]
[]
[null,"Data da Venda","Cliente","CNPJ","Descrição da Venda (Produto ou Serviço)","Valor da Parcela a Receber","Nota Fiscal","Status Nota Fiscal","Se Cancelada, Nº Nota Fiscal Substituta","Data Prevista de Recebimento","Nº Parcela deste Mês","Nº Total de Parcelas","Data Recebimento"]

{"sheet":"CF07","index":7,"n_rows":12,"n_cols":13,"rows_kept":12,"cut":false,"hidden":false,"merged":[[9,2,9,5],[9,7,9,8]]}
[]
[]
[null,null,null,null,null,null,null,null,null,{"$f":"IF(H10>=6750,\"ATENÇÃO: Você atingiu o limite de faturamento mensal de R$ 6.750,00\",IF(H10>=6000,\"O limite de faturamento mensal de R$ 6.750,00 está quase sendo atingido.\",\"\"))","v":""}]
[]
[]
[]
[]
[]
[]
[null,"Empresa:",{"$f":"Menu!G26","v":"Empresa ABCDE"},null,null,null,null,{"$f":"SUMIF(JUL[Status Nota Fiscal],\"Ativa\",JUL[Valor da Parcela a Receber])","v":0}]
[]
[null,"Data da Venda","Cliente","CNPJ","Descrição da Venda (Produto ou Serviço)","Valor da Parcela a Receber","Nota Fiscal","Status Nota Fiscal","Se Cancelada, Nº Nota Fiscal Substituta","Data Prevista de Recebimento","Nº Parcela deste Mês","Nº Total de Parcelas","Data Recebimento"]

{"sheet":"CF08","index":8,"n_rows":12,"n_cols":13,"rows_kept":12,"cut":false,"hidden":false,"merged":[[9,2,9,5],[9,7,9,8]]}
[]
[]
[null,null,null,null,null,null,null,null,null,{"$f":"IF(H10>=6750,\"ATENÇÃO: Você atingiu o limite de faturamento mensal de R$ 6.750,00\",IF(H10>=6000,\"O limite de faturamento mensal de R$ 6.750,00 está quase sendo atingido.\",\"\"))","v":""}]
[]
[]
[]
[]
[]
[]
[null,"Empresa:",{"$f":"Menu!G26","v":"Empresa ABCDE"},null,null,null,null,{"$f":"SUMIF(AGO[Status Nota Fiscal],\"Ativa\",AGO[Valor da Parcela a Receber])","v":0}]
[]
[null,"Data da Venda","Cliente","CNPJ","Descrição da Venda (Produto ou Serviço)","Valor da Parcela a Receber","Nota Fiscal","Status Nota Fiscal","Se Cancelada, Nº Nota Fiscal Substituta","Data Prevista de Recebimento","Nº Parcela deste Mês","Nº Total de Parcelas","Data Recebimento"]

{"sheet":"CF09","index":9,"n_rows":12,"n_cols":13,"rows_kept":12,"cut":false,"hidden":false,"merged":[[9,2,9,5],[9,7,9,8]]}
[]
[]
[null,null,null,null,null,null,null,null,null,{"$f":"IF(H10>=6750,\"ATENÇÃO: Você atingiu o limite de faturamento mensal de R$ 6.750,00\",IF(H10>=6000,\"O limite de faturamento mensal de R$ 6.750,00 está quase sendo atingido.\",\"\"))","v":""}]
[]
[]
[]
[]
[]
[]
[null,"Empresa:",{"$f":"Menu!G26","v":"Empresa ABCDE"},null,null,null,null,{"$f":"SUMIF(SET[Status Nota Fiscal],\"Ativa\",SET[Valor da Parcela a Receber])","v":0}]
[]
[null,"Data da Venda","Cliente","CNPJ","Descrição da Venda (Produto ou Serviço)","Valor da Parcela a Receber","Nota Fiscal","Status Nota Fiscal","Se Cancelada, Nº Nota Fiscal Substituta","Data Prevista de Recebimento","Nº Parcela deste Mês","Nº Total de Parcelas","Data Recebimento"]

{"sheet":"CF10","index":10,"n_rows":12,"n_cols":13,"rows_kept":12,"cut":false,"hidden":false,"merged":[[9,2,9,5],[9,7,9,8]]}
[]
[]
[null,null,null,null,null,null,null,null,null,{"$f":"IF(H10>=6750,\"ATENÇÃO: Você atingiu o limite de faturamento mensal de R$ 6.750,00\",IF(H10>=6000,\"O limite de faturamento mensal de R$ 6.750,00 está quase sendo atingido.\",\"\"))","v":""}]
[]
[]
[]
[]
[]
[]
[null,"Empresa:",{"$f":"Menu!G26","v":"Empresa ABCDE"},null,null,null,null,{"$f":"SUMIF(OUT[Status Nota Fiscal],\"Ativa\",OUT[Valor da Parcela a Receber])","v":0}]
[]
[null,"Data da Venda","Cliente","CNPJ","Descrição da Venda (Produto ou Serviço)","Valor da Parcela a Receber","Nota Fiscal","Status Nota Fiscal","Se Cancelada, Nº Nota Fiscal Substituta","Data Prevista de Recebimento","Nº Parcela deste Mês","Nº Total de Parcelas","Data Recebimento"]

{"sheet":"CF11","index":11,"n_rows":12,"n_cols":13,"rows_kept":12,"cut":false,"hidden":false,"merged":[[9,2,9,5],[9,7,9,8]]}
[]
[]
[null,null,null,null,null,null,null,null,null,{"$f":"IF(H10>=6750,\"ATENÇÃO: Você atingiu o limite de faturamento mensal de R$ 6.750,00\",IF(H10>=6000,\"O limite de faturamento mensal de R$ 6.750,00 está quase sendo atingido.\",\"\"))","v":""}]
[]
[]
[]
[]
[]
[]
[null,"Empresa:",{"$f":"Menu!G26","v":"Empresa ABCDE"},null,null,null,null,{"$f":"SUMIF(NOV[Status Nota Fiscal],\"Ativa\",NOV[Valor da Parcela a Receber])","v":0}]
[]
[null,"Data da Venda","Cliente","CNPJ","Descrição da Venda (Produto ou Serviço)","Valor da Parcela a Receber","Nota Fiscal","Status Nota Fiscal","Se Cancelada, Nº Nota Fiscal Substituta","Data Prevista de Recebimento","Nº Parcela deste Mês","Nº Total de Parcelas","Data Recebimento"]

{"sheet":"CF12","index":12,"n_rows":12,"n_cols":13,"rows_kept":12,"cut":false,"hidden":false,"merged":[[9,2,9,5],[9,7,9,8]]}
[]
[]
[null,null,null,null,null,null,null,null,null,{"$f":"IF(H10>=6750,\"ATENÇÃO: Você atingiu o limite de faturamento mensal de R$ 6.750,00\",IF(H10>=6000,\"O limite de faturamento mensal de R$ 6.750,00 está quase sendo atingido.\",\"\"))","v":""}]
[]
[]
[]
[]
[]
[]
[null,"Empresa:",{"$f":"Menu!G26","v":"Empresa ABCDE"},null,null,null,null,{"$f":"SUMIF(DEZ[Status Nota Fiscal],\"Ativa\",DEZ[Valor da Parcela a Receber])","v":0}]
[]
[null,"Data da Venda","Cliente","CNPJ","Descrição da Venda (Produto ou Serviço)","Valor da Parcela a Receber","Nota Fiscal","Status Nota Fiscal","Se Cancelada, Nº Nota Fiscal Substituta","Data Prevista de Recebimento","Nº Parcela deste Mês","Nº Total de Parcelas","Data Recebimento"]

{"sheet":"Dash","index":13,"n_rows":51,"n_cols":15,"rows_kept":51,"cut":false,"hidden":false,"merged":[[49,1,49,2],[50,1,50,2],[44,1,44,2],[45,1,45,2],[46,1,46,2],[47,1,47,2],[48,1,48,2],[39,1,39,2],[40,1,40,2],[41,1,41,2],[42,1,42,2],[43,1,43,2],[10,1,10,2],[10,3,10,20],[13,1,13,2],[14,1,14,2],[15,1,15,2],[16,1,16,2],[17,1,17,2],[18,1,18,2],[19,1,19,2],[20,1,20,2],[21,1,21,2],[22,1,22,2],[23,1,23,2],[24,1,24,2],[25,1,25,2],[29,6,30,7],[29,12,30,13],[29,8,30,9],[29,14,30,15],[26,1,26,2],[28,1,28,2]]}
[]
[]
[]
[]
[]
[]
[]
[]
[]
[]
[null,"Empresa:",null,{"$f":"Menu!G26","v":"Empresa ABCDE"}]
[]
[]
[null,"Mês",null,"Total de Faturamento no Mês","% Mês Anterior"]
[null,"Janeiro",null,{"$f":"'CF01'!H10","v":6250},0,6750]
[null,"Fevereiro",null,{"$f":"'CF02'!H10","v":0},{"$f":"IFERROR(IF(D16=0,0,D16/D15-1),0)","v":0},6750]
[null,"Março",null,{"$f":"'CF03'!H10","v":0},{"$f":"IFERROR(IF(D17=0,0,D17/D16-1),0)","v":0},6750]
[null,"Abril",null,{"$f":"'CF04'!H10","v":0},0,6750]
[null,"Maio",null,{"$f":"'CF05'!H10","v":0},0,6750]
[null,"Junho",null,{"$f":"'CF06'!H10","v":0},0,6750]
[null,"Julho",null,{"$f":"'CF07'!H10","v":0},0,6750]
[null,"Agosto",null,{"$f":"'CF08'!H10","v":0},0,6750]
[null,"Setembro",null,{"$f":"'CF09'!H10","v":0},0,6750]
[null,"Outubro",null,{"$f":"'CF10'!H10","v":0},0,6750]
[null,"Novembro",null,{"$f":"'CF11'!H10","v":0},0,6750]
[null,"Dezembro",null,{"$f":"'CF12'!H10","v":0},0,6750]
[null,"Total no Ano:",null,{"$f":"SUM(D15:D26)","v":6250},{"$f":"IF(D27>=81000,\"ATENÇÃO: Você atingiu o limite de faturamento anual de R$ 81.000,00\",\"\")","v":""}]
[]
[null,"Média Faturamento:",null,{"$f":"IFERROR(D27/COUNTIF(D15:D26,\">0\"),0)","v":6250}]
[null,null,null,null,null,null,{"$f":"INDEX(B15:D26,MATCH(I30,D15:D26,0),1)","v":"Janeiro"},null,{"$f":"LARGE(D15:D26,1)","v":6250},null,null,null,{"$f":"INDEX(B15:D26,MATCH(O30,D15:D26,0),1)","v":"Janeiro"},null,{"$f":"SMALL(D40:D51,1)","v":6250}]
[]
[]
[]
[]
[]
[]
[]
[]
[]
[null,"Janeiro",null,{"$f":"IF(D15>0,D15,\"\")","v":6250}]
[null,"Fevereiro",null,{"$f":"IF(D16>0,D16,\"\")","v":""}]
[null,"Março",null,""]
[null,"Abril",null,""]
[null,"Maio",null,""]
[null,"Junho",null,""]
[null,"Julho",null,""]
[null,"Agosto",null,""]
[null,"Setembro",null,""]
[null,"Outubro",null,""]
[null,"Novembro",null,""]
[null,"Dezembro",null,""]

{"sheet":"Instruções","index":14,"n_rows":0,"n_cols":0,"rows_kept":0,"cut":false,"hidden":false,"merged":[]}